bitfinex/quotes_ETHUSD_20240719
["timestamp","ask_amount","ask_price","bid_price","bid_amount"]
[1721402240051,2.88623,3464.8,3464.6,2.3304]
[1721402240670,2.88625,3464.7,3464.6,2.3304]
[1721402241594,2.8861,3464.9,3464.6,2.3304]
[1721402241939,2.88601,3465.0,3464.6,2.3304]
[1721402242183,2.88581,3465.3,3464.6,2.3304]
[1721402242697,2.88623,3464.8,3464.6,2.3304]
[1721402243007,2.88603,3465.0,3464.6,2.3304]
[1721402243186,2.88584,3465.2,3464.6,2.56344]
[1721402243338,2.88593,3465.1,3464.6,2.56344]
[1721402244039,2.88601,3465.0,3464.6,2.56344]
[1721402244298,2.88583,3465.2,3464.6,2.56344]
[1721402245102,2.88568,3465.4,3464.6,2.56344]
[1721402245265,3.0,3465.3,3464.7,1.181344]
[1721402245470,2.88559,3465.5,3464.7,1.181344]
[1721402245471,3.0,3465.4,3464.7,1.181344]
[1721402245803,2.88559,3465.5,3464.7,1.181344]
[1721402246105,2.88527,3465.9,3465.0,3.75]
[1721402246302,2.88527,3465.9,3465.1,0.663611]
[1721402246654,2.8851,3466.1,3465.2,2.9654]
[1721402246901,2.88493,3466.3,3465.2,2.9654]
[1721402247051,2.88493,3466.3,3465.3,2.88574]
[1721402247255,2.88493,3466.3,3465.4,0.55]
[1721402247594,2.88493,3466.3,3465.5,0.35154]
[1721402248788,2.88477,3466.5,3465.5,0.35154]
[1721402248789,2.88501,3466.2,3465.5,0.35154]
[1721402249314,2.88477,3466.5,3465.5,0.35154]
[1721402249476,3.0,3466.4,3465.6,3.0388]
[1721402249672,2.8846,3466.7,3465.7,3.599434]
[1721402249872,2.8846,3466.7,3465.8,0.55]
[1721402250106,2.88467,3466.6,3465.8,0.55]
[1721402250397,7.49,3467.2,3465.8,0.55]
[1721402250595,2.88462,3466.7,3465.6,2.4888]
[1721402250898,2.88426,3467.1,3465.6,2.4888]
[1721402251105,2.88526,3465.9,3465.6,2.4888]
[1721402251782,2.88541,3465.7,3465.1,2.4111]
[1721402252609,2.88554,3465.6,3465.1,2.4111]
[1721402252756,2.88497,3466.3,3464.5,5.8864]
[1721402252757,2.88573,3465.4,3464.5,6.789]
[1721402252958,2.8857,3465.4,3464.6,2.4984]
[1721402253674,2.88576,3465.3,3464.6,2.4984]
[1721402254210,2.88576,3465.3,3464.7,0.55]
[1721402255775,2.8855,3465.6,3464.7,0.55]
[1721402256030,3.0,3465.9,3464.7,0.55]
[1721402256031,2.88534,3465.8,3464.7,3.589]
[1721402256175,3.0,3465.7,3464.8,1.08626697]
[1721402256566,2.88576,3465.3,3464.8,1.08626697]
[1721402256761,2.88576,3465.3,3464.7,0.55]
[1721402257395,2.88564,3465.5,3464.7,0.55]
[1721402257803,2.88535,3465.8,3464.8,3.039]
[1721402258046,3.0,3465.7,3464.9,2.9054]
[1721402258172,5.88543,3465.7,3464.9,2.9054]
[1721402258374,5.88543,3465.7,3464.9,3.788454]
[1721402258702,2.88526,3465.9,3464.9,3.788454]
[1721402258862,2.88534,3465.8,3464.9,3.788454]
[1721402259065,2.88542,3465.7,3464.9,3.788454]
[1721402260285,2.88558,3465.5,3465.0,2.816]
[1721402260628,2.88558,3465.5,3464.9,2.3554]
[1721402260629,2.88576,3465.3,3464.9,2.3554]
[1721402262086,2.88558,3465.5,3465.0,2.816]
[1721402262417,2.88539,3465.8,3465.0,3.33314]
[1721402262614,2.88539,3465.8,3465.1,0.55]
[1721402262974,2.88526,3465.9,3465.1,0.55]
[1721402262975,2.88542,3465.7,3465.1,0.55]
[1721402263572,2.88526,3465.9,3465.1,0.55]
[1721402263797,2.8855,3465.6,3465.1,0.55]
[1721402264484,2.8855,3465.6,3465.0,3.33314]
[1721402264485,2.88568,3465.4,3465.0,2.816]
[1721402264809,2.88568,3465.4,3464.9,2.3554]
[1721402266078,2.88583,3465.3,3464.9,2.3554]
[1721402266280,2.88568,3465.4,3464.9,2.3554]
[1721402266281,2.88585,3465.2,3464.9,2.3554]
[1721402266625,2.88568,3465.4,3464.9,2.3554]
[1721402266793,2.8857,3465.4,3464.9,2.3554]
[1721402267184,2.886,3465.0,3464.4,2.4202]
[1721402267441,5.82237456,3466.0,3464.4,2.4202]
[1721402267729,2.88633,3464.6,3464.4,2.4202]
[1721402268017,2.88617,3464.8,3464.4,2.4202]
[1721402268201,2.88627,3464.7,3464.4,2.4202]
[1721402268510,2.88639,3464.6,3464.4,2.4202]
[1721402269340,2.88641,3464.5,3464.4,2.4202]
[1721402269491,2.88651,3464.4,3463.9,2.3591]
[1721402270524,2.88634,3464.6,3463.9,3.0679786]
[1721402270720,2.88592,3465.1,3463.9,3.0679786]
[1721402270721,2.88642,3464.5,3463.9,3.0679786]
[1721402270928,2.88642,3464.5,3464.0,5.7733]
[1721402271378,2.88651,3464.4,3464.0,5.7733]
[1721402272179,2.88674,3464.2,3464.0,5.7733]
[1721402272497,2.88667,3464.2,3464.0,5.7733]
[1721402273238,2.88672,3464.2,3464.0,5.7733]
[1721402273400,2.88665,3464.3,3464.0,5.7733]
[1721402273881,2.88667,3464.2,3464.0,5.7733]
[1721402274703,2.88655,3464.4,3464.0,5.7733]
[1721402274916,2.8866,3464.3,3464.0,5.7733]
[1721402276781,2.8863,3464.7,3464.0,6.58654]
[1721402276986,3.0,3464.6,3464.0,6.58654]
[1721402277291,2.886,3465.0,3464.0,5.7733]
[1721402277600,3.0,3464.9,3464.0,5.7733]
[1721402277799,2.88625,3464.7,3464.0,5.7733]
[1721402278030,3.0,3464.6,3464.0,5.7733]
[1721402278233,2.88666,3464.3,3464.0,5.7733]
[1721402278635,2.88648,3464.5,3464.0,5.7733]
[1721402278927,2.8864,3464.6,3464.0,6.58654]
[1721402279234,2.88625,3464.7,3464.0,6.58654]
[1721402279413,3.0,3464.6,3464.0,6.58654]
[1721402279732,5.88636,3464.6,3464.0,6.58654]
[1721402280334,2.8865,3464.4,3464.0,5.7733]
[1721402280485,5.88633,3464.6,3464.0,5.7733]
[1721402281400,5.47546392,3470.0,3464.0,5.7733]
[1721402281401,2.8861,3464.9,3464.1,0.55]
[1721402281605,2.8861,3464.9,3464.2,5.7733]
[1721402281935,3.0,3464.8,3464.3,0.921007]
[1721402282236,5.88617,3464.8,3464.4,5.773]
[1721402282438,2.886,3465.0,3464.4,5.773]
[1721402282932,5.88609,3464.9,3464.4,5.773]
[1721402283603,2.88592,3465.1,3464.5,2.4202]
[1721402283946,2.88577,3465.3,3464.6,5.7727]
[1721402284247,4.39470482,3465.8,3464.6,5.7727]
[1721402284248,2.88584,3465.2,3464.6,5.7727]
[1721402284434,2.88568,3465.4,3464.6,5.7727]
[1721402284626,2.88568,3465.4,3464.7,1.18038007]
[1721402284829,2.88568,3465.4,3464.8,5.7723]
[1721402285149,2.88576,3465.3,3464.8,5.7723]
[1721402285833,2.88567,3465.4,3464.8,5.7723]
[1721402286203,2.88575,3465.3,3464.8,5.7723]
[1721402286517,2.88564,3465.5,3464.8,6.70958801]
[1721402286715,3.0,3465.4,3464.8,6.70958801]
[1721402287032,5.88567,3465.4,3464.8,6.70958801]
[1721402287239,3.0,3465.4,3464.8,6.70958801]
[1721402287553,5.88558,3465.5,3464.8,6.70958801]
[1721402287718,5.88558,3465.5,3464.9,0.6709588]
[1721402288302,5.88558,3465.5,3464.8,6.70958801]
[1721402288542,2.88558,3465.5,3464.8,6.70958801]
[1721402290456,2.88543,3465.7,3464.8,6.70958801]
[1721402290654,1.9615387,3466.0,3465.1,2.4869]
[1721402290655,0.45239456,3466.0,3465.1,2.4869]
[1721402290821,0.45239456,3466.0,3465.2,6.90699]
[1721402291717,0.45239456,3466.0,3465.3,0.05770646]
[1721402291932,0.45239456,3466.0,3465.4,5.7713]
[1721402292119,2.88531,3465.9,3465.4,5.7713]
[1721402292351,0.45239456,3466.0,3465.4,5.7713]
[1721402292352,2.88558,3465.5,3465.4,5.7713]
[1721402292554,8.65674,3465.5,3465.4,5.7713]
[1721402292754,11.65674,3465.5,3465.4,5.7713]
[1721402294215,13.4673718,3465.5,3465.4,5.7713]
[1721402294413,11.65674,3465.5,3465.4,5.7713]
[1721402295518,11.95624359,3465.5,3465.4,5.7713]
[1721402296645,14.84182359,3465.5,3465.4,5.7713]
[1721402296852,16.95561178,3465.5,3465.4,5.7713]
[1721402297967,14.07110866,3465.5,3465.4,5.7713]
[1721402298251,16.95668866,3465.5,3465.4,5.7713]
[1721402298468,14.07110866,3465.5,3465.4,5.7713]
[1721402299538,11.95624359,3465.5,3465.4,5.7713]
[1721402301760,5.77116,3465.5,3465.4,5.7713]
[1721402302080,2.88558,3465.5,3465.4,5.7713]
[1721402305272,2.88547,3465.7,3465.4,5.7713]
[1721402305483,1.96250603,3466.0,3465.4,6.64954922]
[1721402305679,1.96250603,3466.0,3465.4,9.40784]
[1721402305680,0.45239456,3466.0,3465.4,9.40784]
[1721402305881,2.88494,3466.3,3465.4,9.40784]
[1721402306471,2.885,3466.2,3465.4,9.40784]
[1721402306789,2.885,3466.2,3465.5,1.184194]
[1721402306935,2.885,3466.2,3465.6,5.771]
[1721402307137,2.88488,3466.4,3465.6,5.771]
[1721402307336,2.88475,3466.5,3465.6,5.771]
[1721402307573,3.0,3466.4,3465.6,5.771]
[1721402307876,2.88524,3466.0,3465.6,5.771]
[1721402308292,2.88531,3465.9,3465.6,5.771]
[1721402308457,5.77082,3465.7,3465.6,5.771]
[1721402309558,8.77082,3465.7,3465.6,5.771]
[1721402310957,13.16591432,3465.7,3465.6,5.771]
[1721402311154,11.65623,3465.7,3465.6,5.771]
[1721402311552,13.16628543,3465.7,3465.6,5.771]
[1721402311738,11.65623,3465.7,3465.6,5.771]
[1721402311941,13.16628543,3465.7,3465.6,5.771]
[1721402312178,11.65623,3465.7,3465.6,5.771]
[1721402312380,13.16628543,3465.7,3465.6,5.771]
[1721402313081,13.16626713,3465.7,3465.6,5.771]
[1721402313449,11.65623,3465.7,3465.6,5.771]
[1721402313642,10.28086465,3465.7,3465.6,5.771]
[1721402313842,8.77082,3465.7,3465.6,5.771]
[1721402314086,10.28086465,3465.7,3465.6,5.771]
[1721402315088,8.77082,3465.7,3465.6,5.771]
[1721402315587,5.88541,3465.7,3465.6,5.771]
[1721402315787,2.88541,3465.7,3465.6,5.771]
[1721402315990,2.88527,3465.9,3465.6,5.771]
[1721402316206,3.0,3465.8,3465.6,5.771]
[1721402316353,5.88511,3466.1,3465.6,6.15112874]
[1721402316354,2.88517,3466.0,3465.6,6.15112874]
[1721402316554,2.88501,3466.2,3465.6,5.771]
[1721402316869,2.88517,3466.0,3465.6,5.771]
[1721402317590,2.88505,3466.2,3465.6,5.771]
[1721402319356,2.88483,3466.4,3465.6,5.771]
[1721402319555,2.88483,3466.4,3465.7,1.382621]
[1721402319863,2.88483,3466.4,3465.9,2.3316]
[1721402320081,2.88483,3466.4,3466.0,5.7703]
[1721402323330,5.88475,3466.5,3466.0,5.7703]
[1721402323533,2.88484,3466.4,3466.0,5.7703]
[1721402324106,2.88508,3466.1,3466.0,5.7703]
[1721402325602,2.88497,3466.3,3466.0,5.7703]
[1721402326634,2.88492,3466.3,3466.0,5.7703]
[1721402328835,2.8848,3466.5,3466.0,6.34733]
[1721402329051,5.88484,3466.4,3466.0,6.34733]
[1721402329199,3.0,3466.4,3466.0,6.34733]
[1721402329399,3.0,3466.5,3466.0,6.34733]
[1721402329601,3.0,3466.5,3466.1,0.31523395]
[1721402329830,0.45233594,3466.8,3466.1,0.31523395]
[1721402329831,5.88467,3466.6,3466.2,5.77]
[1721402330248,3.0,3466.6,3466.2,5.77]
[1721402330541,2.88489,3466.4,3466.2,5.77]
[1721402331142,2.88474,3466.6,3466.2,5.77]
[1721402334050,2.88452,3466.8,3466.2,5.77]
[1721402334258,3.0,3466.7,3466.2,6.347]
[1721402334413,2.88452,3466.8,3466.2,6.347]
[1721402335054,2.88443,3466.9,3466.2,8.6285]
[1721402335224,5.88456,3466.8,3466.2,8.0515]
[1721402336455,3.0,3466.8,3466.2,8.0515]
[1721402336628,3.33662467,3467.0,3466.2,8.0515]
[1721402336629,3.0,3466.9,3466.2,8.0515]
[1721402336828,3.0,3466.9,3466.2,9.145158]
[1721402337917,3.33662467,3467.0,3466.2,8.0515]
[1721402338216,5.88448,3466.9,3466.2,8.0515]
[1721402339249,2.8845,3466.8,3466.2,8.0515]
[1721402341052,0.45229467,3467.0,3466.5,2.88475]
[1721402341255,2.88392,3467.5,3466.8,2.4082]
[1721402341867,2.88383,3467.6,3466.8,2.4082]
[1721402342074,2.88392,3467.5,3466.9,6.875008]
[1721402342281,2.88392,3467.5,3466.9,5.7688]
[1721402343903,3.45222367,3467.8,3466.9,5.7688]
[1721402344199,3.0,3467.8,3467.0,2.88432]
[1721402344349,3.0,3467.8,3467.1,5.7685]
[1721402345599,3.0,3467.8,3467.1,7.163047]
[1721402347249,2.88344,3468.1,3467.1,10.047287]
[1721402347556,2.88328,3468.3,3467.3,2.88403]
[1721402347754,2.88328,3468.3,3467.4,5.768]
[1721402348152,2.88328,3468.3,3467.4,8.652]
[1721402348405,2.8831,3468.5,3467.6,2.3824]
[1721402348755,2.8831,3468.5,3467.7,5.7675]
[1721402348951,2.88294,3468.7,3467.7,5.82516809]
[1721402349232,2.88284,3468.8,3467.8,2.94132809]
[1721402349437,2.88267,3469.0,3467.9,5.7672]
[1721402349438,2.88292,3468.7,3467.9,5.7672]
[1721402349730,2.8828,3468.9,3467.9,6.870543]
[1721402350522,2.88285,3468.8,3467.9,6.870543]
[1721402350730,2.88285,3468.8,3468.0,2.2673]
[1721402351029,3.0,3468.7,3468.1,5.7668]
[1721402351393,2.88232,3469.5,3468.4,2.2673]
[1721402351631,2.88201,3469.8,3468.5,6.62050148]
[1721402351931,2.88201,3469.8,3468.8,2.816]
[1721402352177,0.0250167,3470.1,3468.9,5.7655]
[1721402352442,2.88256,3469.2,3468.9,5.7655]
[1721402353538,2.88255,3469.2,3468.9,5.7655]
[1721402353891,2.88267,3469.0,3468.9,5.7655]
[1721402354097,5.76534,3469.0,3468.9,5.7655]
[1721402354520,2.88267,3469.0,3468.9,5.7655]
[1721402354992,2.88251,3469.2,3468.9,5.7655]
[1721402355390,2.88259,3469.1,3468.9,5.7655]
[1721402355595,2.88267,3469.0,3468.9,5.7655]
[1721402355793,5.76534,3469.0,3468.9,5.7655]
[1721402356035,2.88267,3469.0,3468.9,5.7655]
[1721402356235,2.88252,3469.2,3468.9,5.7655]
[1721402357293,2.88234,3469.4,3468.9,5.7655]
[1721402357495,3.0,3469.3,3468.9,5.7655]
[1721402357691,5.88248,3469.3,3468.9,5.7655]
[1721402357932,2.88258,3469.2,3468.9,5.7655]
[1721402358135,2.88267,3469.0,3468.9,5.7655]
[1721402358636,2.88258,3469.2,3468.9,5.7655]
[1721402358998,2.88259,3469.1,3468.9,5.7655]
[1721402359235,2.88251,3469.2,3468.9,5.7655]
[1721402359762,2.88259,3469.1,3468.9,5.7655]
[1721402360036,3.0,3469.3,3468.9,5.7655]
[1721402360438,2.88217,3469.6,3469.0,2.3628]
[1721402360640,3.0,3469.5,3469.0,2.3628]
[1721402361134,3.0,3469.5,3469.0,3.17563]
[1721402361436,5.8823,3469.5,3469.0,3.17563]
[1721402361637,5.8823,3469.5,3469.0,2.3628]
[1721402362210,5.8823,3469.5,3469.1,5.7652]
[1721402362406,2.88242,3469.3,3469.1,5.7652]
[1721402362604,3.0,3469.5,3469.1,5.7652]
[1721402362605,5.765,3469.2,3469.1,5.7652]
[1721402364021,8.765,3469.2,3469.1,5.7652]
[1721402364743,11.6475,3469.2,3469.1,5.7652]
[1721402365242,2.88311,3468.5,3467.0,2.4016]
[1721402365450,2.88356,3468.0,3467.1,0.52176]
[1721402365634,2.88356,3468.0,3467.1,0.52602379]
[1721402365819,2.88361,3467.9,3467.1,0.52602379]
[1721402366347,2.88371,3467.8,3467.1,0.52602379]
[1721402366506,2.88371,3467.8,3467.1,0.00426379]
[1721402366507,2.88393,3467.5,3467.1,0.00426379]
[1721402366706,2.88332,3468.3,3467.1,0.00426379]
[1721402366707,2.8838,3467.7,3467.1,0.00426379]
[1721402366911,2.88362,3467.9,3467.1,0.00426379]
[1721402367112,2.88351,3468.0,3467.1,0.0768079]
[1721402367320,3.0,3468.4,3467.1,0.0768079]
[1721402367321,2.88325,3468.3,3467.2,2.88409]
[1721402367517,3.0,3468.2,3467.4,5.3826]
[1721402367712,3.0,3468.2,3467.5,0.10210649]
[1721402367713,2.88334,3468.2,3467.5,0.10210649]
[1721402367913,3.0,3468.3,3467.4,2.4986]
[1721402368245,2.88376,3467.7,3467.4,2.4986]
[1721402368473,2.88359,3467.9,3467.5,0.01386548]
[1721402368627,2.88343,3468.1,3467.4,2.4986]
[1721402368835,2.88352,3468.0,3467.4,2.4986]
[1721402369233,2.88342,3468.1,3467.4,2.4986]
[1721402369559,2.88342,3468.1,3467.4,2.74846]
[1721402369714,2.8833,3468.3,3467.5,0.55]
[1721402369923,3.0,3468.2,3467.5,0.60766939]
[1721402370168,5.88335,3468.2,3467.5,0.55]
[1721402370333,2.88342,3468.1,3467.5,0.55]
[1721402370747,2.88359,3467.9,3467.4,2.4986]
[1721402371117,3.0,3468.2,3467.4,2.4986]
[1721402371322,2.88352,3468.0,3467.4,2.4986]
[1721402371553,2.88376,3467.7,3467.4,2.4986]
[1721402371765,2.88392,3467.6,3467.4,2.4986]
[1721402372248,2.88392,3467.5,3466.7,2.4943]
[1721402372423,2.8839,3467.6,3466.8,1.852503]
[1721402372950,2.8839,3467.6,3466.9,0.01264968]
[1721402373483,2.88377,3467.7,3466.9,0.01264968]
[1721402373971,2.88351,3468.0,3467.0,5.26888]
[1721402374122,5.88337,3468.2,3467.2,5.26869]
[1721402374317,2.88359,3467.9,3467.3,0.55211903]
[1721402374619,2.88368,3467.8,3467.4,0.0045872]
[1721402374818,2.884,3467.4,3467.3,0.00477054]
[1721402375084,2.88331,3468.3,3467.2,2.3846]
[1721402375085,2.88408,3467.3,3467.2,2.3846]
[1721402376462,2.88347,3468.1,3466.6,2.3566]
[1721402376638,2.88438,3467.0,3466.6,2.3566]
[1721402377050,2.88418,3467.2,3466.6,2.3566]
[1721402377362,2.88425,3467.1,3466.6,2.59226]
[1721402377940,2.88434,3467.0,3466.6,2.59226]
[1721402379041,2.88417,3467.2,3466.6,2.59226]
[1721402379042,2.88442,3466.9,3466.6,2.59226]
[1721402379464,2.8843,3467.1,3466.6,2.59226]
[1721402379846,2.88413,3467.3,3466.6,2.59226]
[1721402380283,2.88417,3467.2,3466.6,2.59226]
[1721402380640,2.88384,3467.6,3466.7,0.259226]
[1721402380858,3.0,3468.0,3466.9,2.4096]
[1721402381046,2.88399,3467.5,3466.9,2.4096]
[1721402381263,3.0,3468.0,3466.9,2.4096]
[1721402381469,10.0,3475.0,3466.9,2.4096]
[1721402381470,2.88418,3467.2,3466.9,2.4096]
[1721402381651,2.88433,3467.0,3466.9,2.4096]
[1721402382370,2.88418,3467.2,3466.9,2.4096]
[1721402382682,2.88427,3467.1,3466.9,2.4096]
[1721402383385,2.88418,3467.2,3466.9,2.4096]
[1721402384007,2.88381,3467.7,3466.9,2.65056]
[1721402384159,3.0,3467.6,3466.9,2.65056]
[1721402384555,2.88386,3467.6,3466.9,2.65056]
[1721402385094,2.88381,3467.7,3467.0,0.55]
[1721402385274,2.88385,3467.6,3467.1,0.320056]
[1721402385476,2.88385,3467.6,3467.2,0.55]
[1721402388560,2.88393,3467.5,3467.2,0.55]
[1721402389192,2.88393,3467.5,3467.0,0.55]
[1721402389572,2.88393,3467.5,3466.5,5.7007]
[1721402389573,2.88458,3466.8,3466.5,2.3727]
[1721402391092,2.88467,3466.6,3466.5,2.3727]
[1721402391683,2.88421,3467.2,3465.6,7.33]
[1721402391860,2.88421,3467.2,3465.0,15.36599]
[1721402391861,2.88494,3466.3,3465.7,3.0171]
[1721402392059,2.88494,3466.3,3465.7,2.2841]
[1721402393163,2.88494,3466.3,3465.8,0.55]
[1721402393359,2.88475,3466.5,3465.8,0.55]
[1721402393701,2.8846,3466.7,3465.9,2.3801]
[1721402393885,2.8846,3466.7,3466.0,0.55]
[1721402393886,2.88459,3466.7,3466.0,0.55]
[1721402394082,2.88467,3466.6,3466.0,1.772035]
[1721402394861,2.88475,3466.5,3466.0,1.772035]
[1721402395264,2.88463,3466.7,3466.0,1.772035]
[1721402396113,2.88467,3466.6,3466.0,1.772035]
[1721402396460,2.88475,3466.5,3466.0,1.772035]
[1721402396660,2.88475,3466.5,3466.0,0.55]
[1721402399093,2.88459,3466.7,3466.0,0.55]
[1721402399604,2.88468,3466.6,3466.0,0.55]
[1721402400507,2.8845,3466.8,3466.0,0.55]
[1721402400866,5.88392,3467.5,3466.0,0.55]
[1721402400867,2.88459,3466.7,3466.0,0.55]
[1721402401061,2.88459,3466.7,3466.0,1.717035]
[1721402401062,2.88469,3466.6,3466.0,1.717035]
[1721402401267,2.88481,3466.5,3466.0,0.55]
[1721402401885,2.88459,3466.7,3466.0,0.55]
[1721402402090,2.88452,3466.8,3466.0,0.55]
[1721402402407,2.88459,3466.7,3466.0,0.55]
[1721402402626,2.88467,3466.6,3466.0,0.55]
[1721402402966,2.8845,3466.8,3466.0,1.42851]
[1721402403175,2.88417,3467.2,3466.2,5.4511]
[1721402403376,2.88417,3467.2,3466.3,2.9621]
[1721402403675,2.88414,3467.3,3466.3,2.9621]
[1721402404103,2.88414,3467.3,3466.3,5.84701]
[1721402404306,2.88414,3467.3,3466.4,1.458708]
[1721402404502,2.88418,3467.2,3466.5,2.8415]
[1721402404890,2.884,3467.4,3466.5,2.8415]
[1721402405291,2.88386,3467.6,3466.8,2.3899]
[1721402405520,2.88393,3467.5,3466.9,0.55]
[1721402406109,2.88384,3467.6,3466.9,0.84399]
[1721402406285,2.88393,3467.5,3466.9,0.84399]
[1721402407022,2.88377,3467.7,3467.0,0.02789817]
[1721402408207,2.88344,3468.1,3467.1,2.3128]
[1721402408414,2.88344,3468.1,3467.2,0.55]
[1721402408591,2.88344,3468.1,3467.3,0.878599]
[1721402408796,2.88324,3468.4,3467.4,0.55]
[1721402409115,2.88326,3468.3,3467.5,2.3128]
[1721402409436,2.88326,3468.3,3467.6,0.55]
[1721402410704,2.88314,3468.5,3467.6,0.55]
[1721402410926,3.0,3468.4,3467.6,0.55]
[1721402411299,2.88294,3468.7,3467.7,5.37189]
[1721402411517,2.88294,3468.7,3467.8,0.55]
[1721402411728,2.88294,3468.7,3467.9,0.0036743]
[1721402411905,2.88243,3469.3,3468.1,8.73835]
[1721402412110,4.69187314,3469.8,3468.3,2.4882]
[1721402412111,1.50818595,3469.6,3468.3,2.4882]
[1721402412311,2.88234,3469.4,3468.4,0.55]
[1721402412524,2.88242,3469.3,3468.4,1.49432]
[1721402412939,0.45196504,3469.7,3468.4,1.49432]
[1721402412940,2.88234,3469.4,3468.4,4.37749]
[1721402413305,0.45196504,3469.7,3468.7,3.039]
[1721402413504,2.88209,3469.7,3468.8,0.55]
[1721402413740,2.88217,3469.6,3468.8,0.55]
[1721402414067,1.98432274,3470.1,3468.8,2.014125]
[1721402414275,1.98432274,3470.1,3468.9,2.3377]
[1721402414276,3.35864913,3470.1,3468.9,2.3377]
[1721402414453,2.88189,3470.0,3469.0,3.43267]
[1721402414655,3.35864913,3470.1,3469.1,2.88252]
[1721402414656,0.47688913,3470.1,3469.1,2.88252]
[1721402414864,0.47688913,3470.1,3469.2,0.55]
[1721402415063,2.88186,3470.0,3469.1,2.88258]
[1721402415368,0.47688913,3470.1,3469.2,3.43249]
[1721402415529,0.47688913,3470.1,3469.3,2.3624]
[1721402415874,0.0250167,3470.1,3469.4,0.55]
[1721402416541,0.0250167,3470.1,3469.5,0.05763465]
[1721402416743,0.0250167,3470.1,3469.4,0.55]
[1721402416744,0.0250167,3470.1,3469.6,0.55]
[1721402416943,0.0250167,3470.1,3469.4,6.47133]
[1721402417162,0.0250167,3470.1,3469.5,1.164973]
[1721402417371,0.0250167,3470.1,3469.6,0.55]
[1721402417668,0.0250167,3470.1,3469.7,2.3172]
[1721402417828,0.0250167,3470.1,3469.8,0.55]
[1721402420886,0.0250167,3470.1,3469.7,2.3172]
[1721402421173,2.88185,3470.0,3469.7,2.3172]
[1721402421389,2.88201,3469.8,3469.7,2.3172]
[1721402421559,2.88201,3469.8,3468.9,5.4552]
[1721402421771,0.0250167,3470.1,3468.9,2.4552]
[1721402422068,2.88252,3469.2,3468.9,2.4552]
[1721402422694,2.88252,3469.2,3467.9,2.88358]
[1721402422695,2.88258,3469.2,3467.9,2.426]
[1721402422895,2.88299,3468.7,3467.9,2.7260679]
[1721402423106,3.0,3469.1,3467.9,2.426]
[1721402423254,2.88341,3468.2,3467.9,2.426]
[1721402423888,2.88318,3468.4,3467.9,2.426]
[1721402424422,2.88293,3468.7,3467.9,2.426]
[1721402424627,2.88324,3468.4,3467.9,2.426]
[1721402424818,2.88343,3468.1,3467.9,2.426]
[1721402425231,3.0,3469.1,3467.9,2.426]
[1721402425232,2.8835,3468.0,3467.9,2.426]
[1721402425386,2.88338,3468.2,3467.9,2.976]
[1721402425588,2.88338,3468.2,3468.0,0.05619991]
[1721402425834,2.88338,3468.2,3467.9,2.976]
[1721402425835,2.88342,3468.1,3467.9,2.976]
[1721402426121,2.88342,3468.1,3468.0,0.04720792]
[1721402426321,2.88327,3468.3,3467.9,2.976]
[1721402426631,2.88334,3468.2,3468.0,0.00762883]
[1721402426838,2.88342,3468.1,3468.0,0.00762883]
[1721402426998,5.76684,3468.1,3468.0,0.00762883]
[1721402427200,2.88353,3468.0,3467.3,2.2589]
[1721402427397,2.88391,3467.6,3467.4,0.00635829]
[1721402427737,2.87836754,3467.3,3466.7,2.2589]
[1721402427888,2.88418,3467.2,3466.7,2.2589]
[1721402428087,2.8843,3467.1,3466.7,2.2589]
[1721402428386,2.88413,3467.3,3466.7,2.2589]
[1721402428593,2.88378,3467.7,3466.8,0.22589]
[1721402428807,2.88386,3467.6,3466.8,0.22589]
[1721402429307,2.88378,3467.7,3466.8,0.22589]
[1721402429509,2.88369,3467.8,3466.9,0.55]
[1721402430632,2.88351,3468.0,3466.9,0.55]
[1721402430633,2.88376,3467.7,3466.9,0.55]
[1721402430804,2.88384,3467.6,3467.0,0.895829]
[1721402431007,3.0,3468.3,3466.7,2.2589]
[1721402431008,2.88418,3467.2,3466.7,2.2589]
[1721402431419,2.88396,3467.5,3466.7,2.2589]
[1721402431613,2.88383,3467.7,3466.7,2.2589]
[1721402431818,3.0,3468.0,3467.0,2.88427]
[1721402432013,2.88312,3468.5,3467.2,2.4958]
[1721402432270,2.8835,3468.0,3467.9,2.816]
[1721402432585,2.8835,3468.0,3467.5,2.816]
[1721402432763,2.8835,3468.0,3467.6,0.55]
[1721402433254,2.8836,3467.9,3467.6,0.55]
[1721402433453,2.88346,3468.1,3467.6,0.55]
[1721402434258,2.88346,3468.1,3467.6,0.97068472]
[1721402434454,5.88305,3468.6,3467.9,2.816]
[1721402434764,5.88305,3468.6,3468.0,0.55]
[1721402434765,2.88305,3468.6,3468.0,0.55]
[1721402435128,5.36689,3469.5,3468.3,2.816]
[1721402435471,2.88229,3469.5,3468.4,0.55]
[1721402436187,2.88292,3468.8,3468.4,0.55]
[1721402436539,2.88316,3468.5,3468.2,0.55]
[1721402437088,3.0,3469.4,3467.6,0.42068472]
[1721402437089,2.88348,3468.1,3467.6,0.42068472]
[1721402437245,2.88348,3468.1,3467.5,5.29]
[1721402437246,2.88303,3468.6,3467.5,5.29]
[1721402437570,2.88349,3468.1,3467.5,5.29]
[1721402437776,2.88328,3468.3,3467.5,5.29]
[1721402438134,5.88309,3468.5,3467.9,2.816]